{"text_format":"3","workbook":"xlsx","n_sheets":4,"sheets":["Общ преглед на бюджета","Справка за бюджета","Месечни разходи","Допълнителни данни"],"not_rendered":{"charts":1,"images":4,"defined_names":7,"pivot_tables":2},"read":"whole","date_system":"1900"}

{"sheet":"Общ преглед на бюджета","index":0,"n_rows":12,"n_cols":8,"rows_kept":12,"merged":[[1,1,1,2],[2,1,2,2],[3,1,3,2],[4,1,4,2]]}
[{"$nulls":7}," "]
[null,"Баланс"]
[null,"Планиран баланс",null,{"$f":"Прогнозни_приходи-Прогнозни_разходи","v":{"v":1585,"d":"1,585 лв."}},null,"Планирани минус разходи"]
[null,"Действителен баланс ",null,{"$f":"Действителни_приходи-Действителни_разходи","v":{"v":1740,"d":"1,740 лв."}},null,"Действителни минус разходи"]
[null,"Разлика",null,{"$f":"D4-D3","v":{"v":155,"d":"155 лв."}},null,"Действителни минус планирани"]
[null,"Приход",{"$nulls":3},"Разходи"]
[null,null,"Планирани","Действителни",null,"Планирани","Действителни"]
[null,"Приходи 1",{"v":6000,"d":"6,000 лв."},{"v":5800,"d":"5,800 лв."},null,{"$f":"SUM(Таблица_Месечни_Разходи[Планиран разход])","v":{"v":7915,"d":"7,915 лв."}},{"$f":"SUM(Таблица_Месечни_Разходи[Действителен разход])","v":{"v":7860,"d":"7,860 лв."}}]
[null,"Приходи 2",{"v":1000,"d":"1,000 лв."},{"v":2300,"d":"2,300 лв."}]
[null,"Допълнителни приходи",{"v":2500,"d":"2,500 лв."},{"v":1500,"d":"1,500 лв."}]
[null,"Общо приходи",{"$f":"SUM(C8:C10)","v":{"v":9500,"d":"9,500 лв."}},{"$f":"SUM(D8:D10)","v":{"v":9600,"d":"9,600 лв."}}]
[null,"Разбивка на действителните разходи"]

{"sheet":"Справка за бюджета","index":1,"n_rows":41,"n_cols":7,"rows_kept":41}
[null,"Справка за бюджета",{"$nulls":4}," "]
[]
[null,"Категории","Планиран разход ","Действителен разход ","Разлика "]
[null,"Деца",{"v":140,"d":"140 лв."},{"v":140,"d":"140 лв."},{"v":0,"d":"0 лв."}]
[null,"Извънкласни дейности",{"v":40,"d":"40 лв."},{"v":40,"d":"40 лв."},{"v":0,"d":"0 лв."}]
[null,"Медицински",null,null,{"v":0,"d":"0 лв."}]
[null,"Училищни пособия",null,null,{"v":0,"d":"0 лв."}]
[null,"Обучение в училище",{"v":100,"d":"100 лв."},{"v":100,"d":"100 лв."},{"v":0,"d":"0 лв."}]
[]
[null,"Развлечения",{"v":400,"d":"400 лв."},{"v":358,"d":"358 лв."},{"v":42,"d":"42 лв."}]
[null,"Концерти",{"v":50,"d":"50 лв."},{"v":40,"d":"40 лв."},{"v":10,"d":"10 лв."}]
[null,"Театър на живо",{"v":200,"d":"200 лв."},{"v":150,"d":"150 лв."},{"v":50,"d":"50 лв."}]
[null,"Филми",{"v":50,"d":"50 лв."},{"v":28,"d":"28 лв."},{"v":22,"d":"22 лв."}]
[null,"Музика (компактдискове, изтегляния и т.н.)",{"v":50,"d":"50 лв."},{"v":30,"d":"30 лв."},{"v":20,"d":"20 лв."}]
[null,"Спортни събития",{"v":0,"d":"0 лв."},{"v":40,"d":"40 лв."},{"v":-40,"d":"-40 лв."}]
[null,"Видео/DVD (закупени)",{"v":20,"d":"20 лв."},{"v":50,"d":"50 лв."},{"v":-30,"d":"-30 лв."}]
[null,"Видео/DVD (под наем)",{"v":30,"d":"30 лв."},{"v":20,"d":"20 лв."},{"v":10,"d":"10 лв."}]
[]
[null,"Храна",{"v":1100,"d":"1,100 лв."},{"v":1320,"d":"1,320 лв."},{"v":-220,"d":"-220 лв."}]
[]
[null,"Подаръци и дарения",{"v":100,"d":"100 лв."},{"v":125,"d":"125 лв."},{"v":-25,"d":"-25 лв."}]
[]
[null,"Домакинство",{"v":2830,"d":"2,830 лв."},{"v":2702,"d":"2,702 лв."},{"v":-72,"d":"-72 лв."}]
[]
[null,"Застраховка",{"v":900,"d":"900 лв."},{"v":900,"d":"900 лв."},{"v":0,"d":"0 лв."}]
[]
[null,"Заеми",{"v":200,"d":"200 лв."},{"v":200,"d":"200 лв."},{"v":0,"d":"0 лв."}]
[]
[null,"Хигиенни материали",{"v":150,"d":"150 лв."},{"v":140,"d":"140 лв."},{"v":10,"d":"10 лв."}]
[]
[null,"Домашни любимци",{"v":170,"d":"170 лв."},{"v":100,"d":"100 лв."},{"v":70,"d":"70 лв."}]
[]
[null,"Данъци",{"v":300,"d":"300 лв."},{"v":300,"d":"300 лв."},{"v":0,"d":"0 лв."}]
[]
[null,"Транспорт",{"v":1425,"d":"1,425 лв."},{"v":1375,"d":"1,375 лв."},{"v":50,"d":"50 лв."}]
[]
[null,"Спестявания",{"v":200,"d":"200 лв."},{"v":200,"d":"200 лв."},{"v":0,"d":"0 лв."}]
[null,"Инвестиционна сметка",{"v":200,"d":"200 лв."},{"v":200,"d":"200 лв."},{"v":0,"d":"0 лв."}]
[null,"Пенсионна сметка",null,null,{"v":0,"d":"0 лв."}]
[]
[null,"Grand Total",{"v":7915,"d":"7,915 лв."},{"v":7860,"d":"7,860 лв."},{"v":-145,"d":"-145 лв."}]

{"sheet":"Месечни разходи","index":2,"n_rows":61,"n_cols":8,"rows_kept":61}
[{"$nulls":7}," "]
[null,"Описание","Категория","Планиран разход","Действителен разход","Разлика","Общ преглед на действителните разходи"]
[null,"Извънкласни дейности","Деца",{"v":40,"d":"40 лв."},{"v":40,"d":"40 лв."},{"$f":"IF(OR(Таблица_Месечни_Разходи[[#This Row],[Планиран разход]]=\"\",Таблица_Месечни_Разходи[[#This Row],[Действителен разход]]=\"\"),\"\",Таблица_Месечни_Разходи[[#This Row],[Планиран разход]]-Таблица_Месечни_Разходи[[#This Row],[Действителен разход]])","v":{"v":0,"d":"0 лв."}},{"$f":"Таблица_Месечни_Разходи[[#This Row],[Действителен разход]]","v":40}]
[null,"Медицински","Деца",null,null,{"$f":"IF(OR(Таблица_Месечни_Разходи[[#This Row],[Планиран разход]]=\"\",Таблица_Месечни_Разходи[[#This Row],[Действителен разход]]=\"\"),\"\",Таблица_Месечни_Разходи[[#This Row],[Планиран разход]]-Таблица_Месечни_Разходи[[#This Row],[Действителен разход]])","v":""},{"$f":"Таблица_Месечни_Разходи[[#This Row],[Действителен разход]]","v":0}]
[null,"Училищни пособия","Деца",null,null,{"$f":"IF(OR(Таблица_Месечни_Разходи[[#This Row],[Планиран разход]]=\"\",Таблица_Месечни_Разходи[[#This Row],[Действителен разход]]=\"\"),\"\",Таблица_Месечни_Разходи[[#This Row],[Планиран разход]]-Таблица_Месечни_Разходи[[#This Row],[Действителен разход]])","v":""},{"$f":"Таблица_Месечни_Разходи[[#This Row],[Действителен разход]]","v":0}]
[null,"Обучение в училище","Деца",{"v":100,"d":"100 лв."},{"v":100,"d":"100 лв."},{"$f":"IF(OR(Таблица_Месечни_Разходи[[#This Row],[Планиран разход]]=\"\",Таблица_Месечни_Разходи[[#This Row],[Действителен разход]]=\"\"),\"\",Таблица_Месечни_Разходи[[#This Row],[Планиран разход]]-Таблица_Месечни_Разходи[[#This Row],[Действителен разход]])","v":{"v":0,"d":"0 лв."}},{"$f":"Таблица_Месечни_Разходи[[#This Row],[Действителен разход]]","v":100}]
[null,"Концерти","Развлечения",{"v":50,"d":"50 лв."},{"v":40,"d":"40 лв."},{"$f":"IF(OR(Таблица_Месечни_Разходи[[#This Row],[Планиран разход]]=\"\",Таблица_Месечни_Разходи[[#This Row],[Действителен разход]]=\"\"),\"\",Таблица_Месечни_Разходи[[#This Row],[Планиран разход]]-Таблица_Месечни_Разходи[[#This Row],[Действителен разход]])","v":{"v":10,"d":"10 лв."}},{"$f":"Таблица_Месечни_Разходи[[#This Row],[Действителен разход]]","v":40}]
[null,"Театър на живо","Развлечения",{"v":200,"d":"200 лв."},{"v":150,"d":"150 лв."},{"$f":"IF(OR(Таблица_Месечни_Разходи[[#This Row],[Планиран разход]]=\"\",Таблица_Месечни_Разходи[[#This Row],[Действителен разход]]=\"\"),\"\",Таблица_Месечни_Разходи[[#This Row],[Планиран разход]]-Таблица_Месечни_Разходи[[#This Row],[Действителен разход]])","v":{"v":50,"d":"50 лв."}},{"$f":"Таблица_Месечни_Разходи[[#This Row],[Действителен разход]]","v":{"v":150,"d":"$150"}}]
[null,"Филми","Развлечения",{"v":50,"d":"50 лв."},{"v":28,"d":"28 лв."},{"$f":"IF(OR(Таблица_Месечни_Разходи[[#This Row],[Планиран разход]]=\"\",Таблица_Месечни_Разходи[[#This Row],[Действителен разход]]=\"\"),\"\",Таблица_Месечни_Разходи[[#This Row],[Планиран разход]]-Таблица_Месечни_Разходи[[#This Row],[Действителен разход]])","v":{"v":22,"d":"22 лв."}},{"$f":"Таблица_Месечни_Разходи[[#This Row],[Действителен разход]]","v":28}]
[null,"Музика (компактдискове, изтегляния и т.н.)","Развлечения",{"v":50,"d":"50 лв."},{"v":30,"d":"30 лв."},{"$f":"IF(OR(Таблица_Месечни_Разходи[[#This Row],[Планиран разход]]=\"\",Таблица_Месечни_Разходи[[#This Row],[Действителен разход]]=\"\"),\"\",Таблица_Месечни_Разходи[[#This Row],[Планиран разход]]-Таблица_Месечни_Разходи[[#This Row],[Действителен разход]])","v":{"v":20,"d":"20 лв."}},{"$f":"Таблица_Месечни_Разходи[[#This Row],[Действителен разход]]","v":30}]
[null,"Спортни събития","Развлечения",{"v":0,"d":"0 лв."},{"v":40,"d":"40 лв."},{"$f":"IF(OR(Таблица_Месечни_Разходи[[#This Row],[Планиран разход]]=\"\",Таблица_Месечни_Разходи[[#This Row],[Действителен разход]]=\"\"),\"\",Таблица_Месечни_Разходи[[#This Row],[Планиран разход]]-Таблица_Месечни_Разходи[[#This Row],[Действителен разход]])","v":{"v":-40,"d":"-40 лв."}},{"$f":"Таблица_Месечни_Разходи[[#This Row],[Действителен разход]]","v":40}]
[null,"Видео/DVD (закупени)","Развлечения",{"v":20,"d":"20 лв."},{"v":50,"d":"50 лв."},{"$f":"IF(OR(Таблица_Месечни_Разходи[[#This Row],[Планиран разход]]=\"\",Таблица_Месечни_Разходи[[#This Row],[Действителен разход]]=\"\"),\"\",Таблица_Месечни_Разходи[[#This Row],[Планиран разход]]-Таблица_Месечни_Разходи[[#This Row],[Действителен разход]])","v":{"v":-30,"d":"-30 лв."}},{"$f":"Таблица_Месечни_Разходи[[#This Row],[Действителен разход]]","v":50}]
[null,"Видео/DVD (под наем)","Развлечения",{"v":30,"d":"30 лв."},{"v":20,"d":"20 лв."},{"$f":"IF(OR(Таблица_Месечни_Разходи[[#This Row],[Планиран разход]]=\"\",Таблица_Месечни_Разходи[[#This Row],[Действителен разход]]=\"\"),\"\",Таблица_Месечни_Разходи[[#This Row],[Планиран разход]]-Таблица_Месечни_Разходи[[#This Row],[Действителен разход]])","v":{"v":10,"d":"10 лв."}},{"$f":"Таблица_Месечни_Разходи[[#This Row],[Действителен разход]]","v":20}]
[null,"Заведения","Храна",{"v":1000,"d":"1,000 лв."},{"v":1200,"d":"1,200 лв."},{"$f":"IF(OR(Таблица_Месечни_Разходи[[#This Row],[Планиран разход]]=\"\",Таблица_Месечни_Разходи[[#This Row],[Действителен разход]]=\"\"),\"\",Таблица_Месечни_Разходи[[#This Row],[Планиран разход]]-Таблица_Месечни_Разходи[[#This Row],[Действителен разход]])","v":{"v":-200,"d":"-200 лв."}},{"$f":"Таблица_Месечни_Разходи[[#This Row],[Действителен разход]]","v":1200}]
[null,"Хранителни стоки","Храна",{"v":100,"d":"100 лв."},{"v":120,"d":"120 лв."},{"$f":"IF(OR(Таблица_Месечни_Разходи[[#This Row],[Планиран разход]]=\"\",Таблица_Месечни_Разходи[[#This Row],[Действителен разход]]=\"\"),\"\",Таблица_Месечни_Разходи[[#This Row],[Планиран разход]]-Таблица_Месечни_Разходи[[#This Row],[Действителен разход]])","v":{"v":-20,"d":"-20 лв."}},{"$f":"Таблица_Месечни_Разходи[[#This Row],[Действителен разход]]","v":120}]
[null,"Благотворителност 1","Подаръци и дарения",{"v":75,"d":"75 лв."},{"v":100,"d":"100 лв."},{"$f":"IF(OR(Таблица_Месечни_Разходи[[#This Row],[Планиран разход]]=\"\",Таблица_Месечни_Разходи[[#This Row],[Действителен разход]]=\"\"),\"\",Таблица_Месечни_Разходи[[#This Row],[Планиран разход]]-Таблица_Месечни_Разходи[[#This Row],[Действителен разход]])","v":{"v":-25,"d":"-25 лв."}},{"$f":"Таблица_Месечни_Разходи[[#This Row],[Действителен разход]]","v":100}]
[null,"Благотворителност 2","Подаръци и дарения",{"v":25,"d":"25 лв."},{"v":25,"d":"25 лв."},{"$f":"IF(OR(Таблица_Месечни_Разходи[[#This Row],[Планиран разход]]=\"\",Таблица_Месечни_Разходи[[#This Row],[Действителен разход]]=\"\"),\"\",Таблица_Месечни_Разходи[[#This Row],[Планиран разход]]-Таблица_Месечни_Разходи[[#This Row],[Действителен разход]])","v":{"v":0,"d":"0 лв."}},{"$f":"Таблица_Месечни_Разходи[[#This Row],[Действителен разход]]","v":25}]
[null,"Подарък 1","Подаръци и дарения",null,null,{"$f":"IF(OR(Таблица_Месечни_Разходи[[#This Row],[Планиран разход]]=\"\",Таблица_Месечни_Разходи[[#This Row],[Действителен разход]]=\"\"),\"\",Таблица_Месечни_Разходи[[#This Row],[Планиран разход]]-Таблица_Месечни_Разходи[[#This Row],[Действителен разход]])","v":""},{"$f":"Таблица_Месечни_Разходи[[#This Row],[Действителен разход]]","v":0}]
[null,"Подарък 2","Подаръци и дарения",null,null,{"$f":"IF(OR(Таблица_Месечни_Разходи[[#This Row],[Планиран разход]]=\"\",Таблица_Месечни_Разходи[[#This Row],[Действителен разход]]=\"\"),\"\",Таблица_Месечни_Разходи[[#This Row],[Планиран разход]]-Таблица_Месечни_Разходи[[#This Row],[Действителен разход]])","v":""},{"$f":"Таблица_Месечни_Разходи[[#This Row],[Действителен разход]]","v":0}]
[null,"Кабелна/сателитна ТВ","Домакинство",{"v":100,"d":"100 лв."},{"v":100,"d":"100 лв."},{"$f":"IF(OR(Таблица_Месечни_Разходи[[#This Row],[Планиран разход]]=\"\",Таблица_Месечни_Разходи[[#This Row],[Действителен разход]]=\"\"),\"\",Таблица_Месечни_Разходи[[#This Row],[Планиран разход]]-Таблица_Месечни_Разходи[[#This Row],[Действителен разход]])","v":{"v":0,"d":"0 лв."}},{"$f":"Таблица_Месечни_Разходи[[#This Row],[Действителен разход]]","v":100}]
[null,"Ток","Домакинство",{"v":45,"d":"45 лв."},{"v":50,"d":"50 лв."},{"$f":"IF(OR(Таблица_Месечни_Разходи[[#This Row],[Планиран разход]]=\"\",Таблица_Месечни_Разходи[[#This Row],[Действителен разход]]=\"\"),\"\",Таблица_Месечни_Разходи[[#This Row],[Планиран разход]]-Таблица_Месечни_Разходи[[#This Row],[Действителен разход]])","v":{"v":-5,"d":"-5 лв."}},{"$f":"Таблица_Месечни_Разходи[[#This Row],[Действителен разход]]","v":50}]
[null,"Газ","Домакинство",{"v":300,"d":"300 лв."},{"v":400,"d":"400 лв."},{"$f":"IF(OR(Таблица_Месечни_Разходи[[#This Row],[Планиран разход]]=\"\",Таблица_Месечни_Разходи[[#This Row],[Действителен разход]]=\"\"),\"\",Таблица_Месечни_Разходи[[#This Row],[Планиран разход]]-Таблица_Месечни_Разходи[[#This Row],[Действителен разход]])","v":{"v":-100,"d":"-100 лв."}},{"$f":"Таблица_Месечни_Разходи[[#This Row],[Действителен разход]]","v":400}]
[null,"Почистване на дома","Домакинство",{"v":200,"d":"200 лв."},null,{"$f":"IF(OR(Таблица_Месечни_Разходи[[#This Row],[Планиран разход]]=\"\",Таблица_Месечни_Разходи[[#This Row],[Действителен разход]]=\"\"),\"\",Таблица_Месечни_Разходи[[#This Row],[Планиран разход]]-Таблица_Месечни_Разходи[[#This Row],[Действителен разход]])","v":""},{"$f":"Таблица_Месечни_Разходи[[#This Row],[Действителен разход]]","v":0}]
[null,"Поддръжка","Домакинство",{"v":200,"d":"200 лв."},{"v":150,"d":"150 лв."},{"$f":"IF(OR(Таблица_Месечни_Разходи[[#This Row],[Планиран разход]]=\"\",Таблица_Месечни_Разходи[[#This Row],[Действителен разход]]=\"\"),\"\",Таблица_Месечни_Разходи[[#This Row],[Планиран разход]]-Таблица_Месечни_Разходи[[#This Row],[Действителен разход]])","v":{"v":50,"d":"50 лв."}},{"$f":"Таблица_Месечни_Разходи[[#This Row],[Действителен разход]]","v":150}]
[null,"Ипотека или наем","Домакинство",{"v":1700,"d":"1,700 лв."},{"v":1700,"d":"1,700 лв."},{"$f":"IF(OR(Таблица_Месечни_Разходи[[#This Row],[Планиран разход]]=\"\",Таблица_Месечни_Разходи[[#This Row],[Действителен разход]]=\"\"),\"\",Таблица_Месечни_Разходи[[#This Row],[Планиран разход]]-Таблица_Месечни_Разходи[[#This Row],[Действителен разход]])","v":{"v":0,"d":"0 лв."}},{"$f":"Таблица_Месечни_Разходи[[#This Row],[Действителен разход]]","v":1700}]
[null,"Природен газ/петрол","Домакинство",null,null,{"$f":"IF(OR(Таблица_Месечни_Разходи[[#This Row],[Планиран разход]]=\"\",Таблица_Месечни_Разходи[[#This Row],[Действителен разход]]=\"\"),\"\",Таблица_Месечни_Разходи[[#This Row],[Планиран разход]]-Таблица_Месечни_Разходи[[#This Row],[Действителен разход]])","v":""},{"$f":"Таблица_Месечни_Разходи[[#This Row],[Действителен разход]]","v":0}]
[null,"Онлайн/интернет услуги","Домакинство",{"v":100,"d":"100 лв."},{"v":100,"d":"100 лв."},{"$f":"IF(OR(Таблица_Месечни_Разходи[[#This Row],[Планиран разход]]=\"\",Таблица_Месечни_Разходи[[#This Row],[Действителен разход]]=\"\"),\"\",Таблица_Месечни_Разходи[[#This Row],[Планиран разход]]-Таблица_Месечни_Разходи[[#This Row],[Действителен разход]])","v":{"v":0,"d":"0 лв."}},{"$f":"Таблица_Месечни_Разходи[[#This Row],[Действителен разход]]","v":100}]
[null,"Телефон (мобилен)","Домакинство",{"v":60,"d":"60 лв."},{"v":60,"d":"60 лв."},{"$f":"IF(OR(Таблица_Месечни_Разходи[[#This Row],[Планиран разход]]=\"\",Таблица_Месечни_Разходи[[#This Row],[Действителен разход]]=\"\"),\"\",Таблица_Месечни_Разходи[[#This Row],[Планиран разход]]-Таблица_Месечни_Разходи[[#This Row],[Действителен разход]])","v":{"v":0,"d":"0 лв."}},{"$f":"Таблица_Месечни_Разходи[[#This Row],[Действителен разход]]","v":60}]
[null,"Телефон (домашен)","Домакинство",{"v":35,"d":"35 лв."},{"v":39,"d":"39 лв."},{"$f":"IF(OR(Таблица_Месечни_Разходи[[#This Row],[Планиран разход]]=\"\",Таблица_Месечни_Разходи[[#This Row],[Действителен разход]]=\"\"),\"\",Таблица_Месечни_Разходи[[#This Row],[Планиран разход]]-Таблица_Месечни_Разходи[[#This Row],[Действителен разход]])","v":{"v":-4,"d":"-4 лв."}},{"$f":"Таблица_Месечни_Разходи[[#This Row],[Действителен разход]]","v":39}]
[null,"Консумативи","Домакинство",{"v":40,"d":"40 лв."},{"v":55,"d":"55 лв."},{"$f":"IF(OR(Таблица_Месечни_Разходи[[#This Row],[Планиран разход]]=\"\",Таблица_Месечни_Разходи[[#This Row],[Действителен разход]]=\"\"),\"\",Таблица_Месечни_Разходи[[#This Row],[Планиран разход]]-Таблица_Месечни_Разходи[[#This Row],[Действителен разход]])","v":{"v":-15,"d":"-15 лв."}},{"$f":"Таблица_Месечни_Разходи[[#This Row],[Действителен разход]]","v":55}]
[null,"Такса смет","Домакинство",{"v":25,"d":"25 лв."},{"v":22,"d":"22 лв."},{"$f":"IF(OR(Таблица_Месечни_Разходи[[#This Row],[Планиран разход]]=\"\",Таблица_Месечни_Разходи[[#This Row],[Действителен разход]]=\"\"),\"\",Таблица_Месечни_Разходи[[#This Row],[Планиран разход]]-Таблица_Месечни_Разходи[[#This Row],[Действителен разход]])","v":{"v":3,"d":"3 лв."}},{"$f":"Таблица_Месечни_Разходи[[#This Row],[Действителен разход]]","v":22}]
[null,"ВИК","Домакинство",{"v":25,"d":"25 лв."},{"v":26,"d":"26 лв."},{"$f":"IF(OR(Таблица_Месечни_Разходи[[#This Row],[Планиран разход]]=\"\",Таблица_Месечни_Разходи[[#This Row],[Действителен разход]]=\"\"),\"\",Таблица_Месечни_Разходи[[#This Row],[Планиран разход]]-Таблица_Месечни_Разходи[[#This Row],[Действителен разход]])","v":{"v":-1,"d":"-1 лв."}},{"$f":"Таблица_Месечни_Разходи[[#This Row],[Действителен разход]]","v":26}]
[null,"Здраве","Застраховка",{"v":400,"d":"400 лв."},{"v":400,"d":"400 лв."},{"$f":"IF(OR(Таблица_Месечни_Разходи[[#This Row],[Планиран разход]]=\"\",Таблица_Месечни_Разходи[[#This Row],[Действителен разход]]=\"\"),\"\",Таблица_Месечни_Разходи[[#This Row],[Планиран разход]]-Таблица_Месечни_Разходи[[#This Row],[Действителен разход]])","v":{"v":0,"d":"0 лв."}},{"$f":"Таблица_Месечни_Разходи[[#This Row],[Действителен разход]]","v":400}]
[null,"Дом","Застраховка",{"v":400,"d":"400 лв."},{"v":400,"d":"400 лв."},{"$f":"IF(OR(Таблица_Месечни_Разходи[[#This Row],[Планиран разход]]=\"\",Таблица_Месечни_Разходи[[#This Row],[Действителен разход]]=\"\"),\"\",Таблица_Месечни_Разходи[[#This Row],[Планиран разход]]-Таблица_Месечни_Разходи[[#This Row],[Действителен разход]])","v":{"v":0,"d":"0 лв."}},{"$f":"Таблица_Месечни_Разходи[[#This Row],[Действителен разход]]","v":400}]
[null,"Живот","Застраховка",{"v":100,"d":"100 лв."},{"v":100,"d":"100 лв."},{"$f":"IF(OR(Таблица_Месечни_Разходи[[#This Row],[Планиран разход]]=\"\",Таблица_Месечни_Разходи[[#This Row],[Действителен разход]]=\"\"),\"\",Таблица_Месечни_Разходи[[#This Row],[Планиран разход]]-Таблица_Месечни_Разходи[[#This Row],[Действителен разход]])","v":{"v":0,"d":"0 лв."}},{"$f":"Таблица_Месечни_Разходи[[#This Row],[Действителен разход]]","v":100}]
[null,"Кредитна карта 1","Заеми",{"v":200,"d":"200 лв."},{"v":200,"d":"200 лв."},{"$f":"IF(OR(Таблица_Месечни_Разходи[[#This Row],[Планиран разход]]=\"\",Таблица_Месечни_Разходи[[#This Row],[Действителен разход]]=\"\"),\"\",Таблица_Месечни_Разходи[[#This Row],[Планиран разход]]-Таблица_Месечни_Разходи[[#This Row],[Действителен разход]])","v":{"v":0,"d":"0 лв."}},{"$f":"Таблица_Месечни_Разходи[[#This Row],[Действителен разход]]","v":200}]
[null,"Кредитна карта 2","Заеми",null,null,{"$f":"IF(OR(Таблица_Месечни_Разходи[[#This Row],[Планиран разход]]=\"\",Таблица_Месечни_Разходи[[#This Row],[Действителен разход]]=\"\"),\"\",Таблица_Месечни_Разходи[[#This Row],[Планиран разход]]-Таблица_Месечни_Разходи[[#This Row],[Действителен разход]])","v":""},{"$f":"Таблица_Месечни_Разходи[[#This Row],[Действителен разход]]","v":0}]
[null,"Кредитна карта 3","Заеми",null,null,{"$f":"IF(OR(Таблица_Месечни_Разходи[[#This Row],[Планиран разход]]=\"\",Таблица_Месечни_Разходи[[#This Row],[Действителен разход]]=\"\"),\"\",Таблица_Месечни_Разходи[[#This Row],[Планиран разход]]-Таблица_Месечни_Разходи[[#This Row],[Действителен разход]])","v":""},{"$f":"Таблица_Месечни_Разходи[[#This Row],[Действителен разход]]","v":0}]
[null,"Лични","Заеми",null,null,{"$f":"IF(OR(Таблица_Месечни_Разходи[[#This Row],[Планиран разход]]=\"\",Таблица_Месечни_Разходи[[#This Row],[Действителен разход]]=\"\"),\"\",Таблица_Месечни_Разходи[[#This Row],[Планиран разход]]-Таблица_Месечни_Разходи[[#This Row],[Действителен разход]])","v":""},{"$f":"Таблица_Месечни_Разходи[[#This Row],[Действителен разход]]","v":0}]
[null,"Студентски","Заеми",null,null,{"$f":"IF(OR(Таблица_Месечни_Разходи[[#This Row],[Планиран разход]]=\"\",Таблица_Месечни_Разходи[[#This Row],[Действителен разход]]=\"\"),\"\",Таблица_Месечни_Разходи[[#This Row],[Планиран разход]]-Таблица_Месечни_Разходи[[#This Row],[Действителен разход]])","v":""},{"$f":"Таблица_Месечни_Разходи[[#This Row],[Действителен разход]]","v":0}]
[null,"Облекло","Хигиенни материали",{"v":150,"d":"150 лв."},{"v":140,"d":"140 лв."},{"$f":"IF(OR(Таблица_Месечни_Разходи[[#This Row],[Планиран разход]]=\"\",Таблица_Месечни_Разходи[[#This Row],[Действителен разход]]=\"\"),\"\",Таблица_Месечни_Разходи[[#This Row],[Планиран разход]]-Таблица_Месечни_Разходи[[#This Row],[Действителен разход]])","v":{"v":10,"d":"10 лв."}},{"$f":"Таблица_Месечни_Разходи[[#This Row],[Действителен разход]]","v":140}]
[null,"Химическо чистене","Хигиенни материали",null,null,{"$f":"IF(OR(Таблица_Месечни_Разходи[[#This Row],[Планиран разход]]=\"\",Таблица_Месечни_Разходи[[#This Row],[Действителен разход]]=\"\"),\"\",Таблица_Месечни_Разходи[[#This Row],[Планиран разход]]-Таблица_Месечни_Разходи[[#This Row],[Действителен разход]])","v":""},{"$f":"Таблица_Месечни_Разходи[[#This Row],[Действителен разход]]","v":0}]
[null,"Коса/нокти","Хигиенни материали",null,null,{"$f":"IF(OR(Таблица_Месечни_Разходи[[#This Row],[Планиран разход]]=\"\",Таблица_Месечни_Разходи[[#This Row],[Действителен разход]]=\"\"),\"\",Таблица_Месечни_Разходи[[#This Row],[Планиран разход]]-Таблица_Месечни_Разходи[[#This Row],[Действителен разход]])","v":""},{"$f":"Таблица_Месечни_Разходи[[#This Row],[Действителен разход]]","v":0}]
[null,"Здравен клуб","Хигиенни материали",null,null,{"$f":"IF(OR(Таблица_Месечни_Разходи[[#This Row],[Планиран разход]]=\"\",Таблица_Месечни_Разходи[[#This Row],[Действителен разход]]=\"\"),\"\",Таблица_Месечни_Разходи[[#This Row],[Планиран разход]]-Таблица_Месечни_Разходи[[#This Row],[Действителен разход]])","v":""},{"$f":"Таблица_Месечни_Разходи[[#This Row],[Действителен разход]]","v":0}]
[null,"Медицински","Хигиенни материали",null,null,{"$f":"IF(OR(Таблица_Месечни_Разходи[[#This Row],[Планиран разход]]=\"\",Таблица_Месечни_Разходи[[#This Row],[Действителен разход]]=\"\"),\"\",Таблица_Месечни_Разходи[[#This Row],[Планиран разход]]-Таблица_Месечни_Разходи[[#This Row],[Действителен разход]])","v":""},{"$f":"Таблица_Месечни_Разходи[[#This Row],[Действителен разход]]","v":0}]
[null,"Храна","Домашни любимци",{"v":150,"d":"150 лв."},{"v":75,"d":"75 лв."},{"$f":"IF(OR(Таблица_Месечни_Разходи[[#This Row],[Планиран разход]]=\"\",Таблица_Месечни_Разходи[[#This Row],[Действителен разход]]=\"\"),\"\",Таблица_Месечни_Разходи[[#This Row],[Планиран разход]]-Таблица_Месечни_Разходи[[#This Row],[Действителен разход]])","v":{"v":75,"d":"75 лв."}},{"$f":"Таблица_Месечни_Разходи[[#This Row],[Действителен разход]]","v":75}]
[null,"Поддържане","Домашни любимци",{"v":20,"d":"20 лв."},{"v":25,"d":"25 лв."},{"$f":"IF(OR(Таблица_Месечни_Разходи[[#This Row],[Планиран разход]]=\"\",Таблица_Месечни_Разходи[[#This Row],[Действителен разход]]=\"\"),\"\",Таблица_Месечни_Разходи[[#This Row],[Планиран разход]]-Таблица_Месечни_Разходи[[#This Row],[Действителен разход]])","v":{"v":-5,"d":"-5 лв."}},{"$f":"Таблица_Месечни_Разходи[[#This Row],[Действителен разход]]","v":25}]
[null,"Медицински","Домашни любимци",null,null,{"$f":"IF(OR(Таблица_Месечни_Разходи[[#This Row],[Планиран разход]]=\"\",Таблица_Месечни_Разходи[[#This Row],[Действителен разход]]=\"\"),\"\",Таблица_Месечни_Разходи[[#This Row],[Планиран разход]]-Таблица_Месечни_Разходи[[#This Row],[Действителен разход]])","v":""},{"$f":"Таблица_Месечни_Разходи[[#This Row],[Действителен разход]]","v":0}]
[null,"Играчки","Домашни любимци",null,null,{"$f":"IF(OR(Таблица_Месечни_Разходи[[#This Row],[Планиран разход]]=\"\",Таблица_Месечни_Разходи[[#This Row],[Действителен разход]]=\"\"),\"\",Таблица_Месечни_Разходи[[#This Row],[Планиран разход]]-Таблица_Месечни_Разходи[[#This Row],[Действителен разход]])","v":""},{"$f":"Таблица_Месечни_Разходи[[#This Row],[Действителен разход]]","v":0}]
[null,"Инвестиционна сметка","Спестявания",{"v":200,"d":"200 лв."},{"v":200,"d":"200 лв."},{"$f":"IF(OR(Таблица_Месечни_Разходи[[#This Row],[Планиран разход]]=\"\",Таблица_Месечни_Разходи[[#This Row],[Действителен разход]]=\"\"),\"\",Таблица_Месечни_Разходи[[#This Row],[Планиран разход]]-Таблица_Месечни_Разходи[[#This Row],[Действителен разход]])","v":{"v":0,"d":"0 лв."}},{"$f":"Таблица_Месечни_Разходи[[#This Row],[Действителен разход]]","v":200}]
[null,"Пенсионна сметка","Спестявания",null,null,{"$f":"IF(OR(Таблица_Месечни_Разходи[[#This Row],[Планиран разход]]=\"\",Таблица_Месечни_Разходи[[#This Row],[Действителен разход]]=\"\"),\"\",Таблица_Месечни_Разходи[[#This Row],[Планиран разход]]-Таблица_Месечни_Разходи[[#This Row],[Действителен разход]])","v":""},{"$f":"Таблица_Месечни_Разходи[[#This Row],[Действителен разход]]","v":0}]
[null,"Държавни","Данъци",{"v":300,"d":"300 лв."},{"v":300,"d":"300 лв."},{"$f":"IF(OR(Таблица_Месечни_Разходи[[#This Row],[Планиран разход]]=\"\",Таблица_Месечни_Разходи[[#This Row],[Действителен разход]]=\"\"),\"\",Таблица_Месечни_Разходи[[#This Row],[Планиран разход]]-Таблица_Месечни_Разходи[[#This Row],[Действителен разход]])","v":{"v":0,"d":"0 лв."}},{"$f":"Таблица_Месечни_Разходи[[#This Row],[Действителен разход]]","v":300}]
[null,"Локални","Данъци",null,null,{"$f":"IF(OR(Таблица_Месечни_Разходи[[#This Row],[Планиран разход]]=\"\",Таблица_Месечни_Разходи[[#This Row],[Действителен разход]]=\"\"),\"\",Таблица_Месечни_Разходи[[#This Row],[Планиран разход]]-Таблица_Месечни_Разходи[[#This Row],[Действителен разход]])","v":""},{"$f":"Таблица_Месечни_Разходи[[#This Row],[Действителен разход]]","v":0}]
[null,"Областни","Данъци",null,null,{"$f":"IF(OR(Таблица_Месечни_Разходи[[#This Row],[Планиран разход]]=\"\",Таблица_Месечни_Разходи[[#This Row],[Действителен разход]]=\"\"),\"\",Таблица_Месечни_Разходи[[#This Row],[Планиран разход]]-Таблица_Месечни_Разходи[[#This Row],[Действителен разход]])","v":""},{"$f":"Таблица_Месечни_Разходи[[#This Row],[Действителен разход]]","v":0}]
[null,"Разходи за автобус/такси","Транспорт",{"v":100,"d":"100 лв."},{"v":150,"d":"150 лв."},{"$f":"IF(OR(Таблица_Месечни_Разходи[[#This Row],[Планиран разход]]=\"\",Таблица_Месечни_Разходи[[#This Row],[Действителен разход]]=\"\"),\"\",Таблица_Месечни_Разходи[[#This Row],[Планиран разход]]-Таблица_Месечни_Разходи[[#This Row],[Действителен разход]])","v":{"v":-50,"d":"-50 лв."}},{"$f":"Таблица_Месечни_Разходи[[#This Row],[Действителен разход]]","v":150}]
[null,"Гориво","Транспорт",{"v":450,"d":"450 лв."},{"v":400,"d":"400 лв."},{"$f":"IF(OR(Таблица_Месечни_Разходи[[#This Row],[Планиран разход]]=\"\",Таблица_Месечни_Разходи[[#This Row],[Действителен разход]]=\"\"),\"\",Таблица_Месечни_Разходи[[#This Row],[Планиран разход]]-Таблица_Месечни_Разходи[[#This Row],[Действителен разход]])","v":{"v":50,"d":"50 лв."}},{"$f":"Таблица_Месечни_Разходи[[#This Row],[Действителен разход]]","v":400}]
[null,"Застраховка","Транспорт",{"v":300,"d":"300 лв."},{"v":300,"d":"300 лв."},{"$f":"IF(OR(Таблица_Месечни_Разходи[[#This Row],[Планиран разход]]=\"\",Таблица_Месечни_Разходи[[#This Row],[Действителен разход]]=\"\"),\"\",Таблица_Месечни_Разходи[[#This Row],[Планиран разход]]-Таблица_Месечни_Разходи[[#This Row],[Действителен разход]])","v":{"v":0,"d":"0 лв."}},{"$f":"Таблица_Месечни_Разходи[[#This Row],[Действителен разход]]","v":300}]
[null,"Лицензи ","Транспорт",{"v":25,"d":"25 лв."},{"v":25,"d":"25 лв."},{"$f":"IF(OR(Таблица_Месечни_Разходи[[#This Row],[Планиран разход]]=\"\",Таблица_Месечни_Разходи[[#This Row],[Действителен разход]]=\"\"),\"\",Таблица_Месечни_Разходи[[#This Row],[Планиран разход]]-Таблица_Месечни_Разходи[[#This Row],[Действителен разход]])","v":{"v":0,"d":"0 лв."}},{"$f":"Таблица_Месечни_Разходи[[#This Row],[Действителен разход]]","v":25}]
[null,"Поддръжка","Транспорт",{"v":100,"d":"100 лв."},{"v":50,"d":"50 лв."},{"$f":"IF(OR(Таблица_Месечни_Разходи[[#This Row],[Планиран разход]]=\"\",Таблица_Месечни_Разходи[[#This Row],[Действителен разход]]=\"\"),\"\",Таблица_Месечни_Разходи[[#This Row],[Планиран разход]]-Таблица_Месечни_Разходи[[#This Row],[Действителен разход]])","v":{"v":50,"d":"50 лв."}},{"$f":"Таблица_Месечни_Разходи[[#This Row],[Действителен разход]]","v":50}]
[null,"Такси за паркинг","Транспорт",null,null,{"$f":"IF(OR(Таблица_Месечни_Разходи[[#This Row],[Планиран разход]]=\"\",Таблица_Месечни_Разходи[[#This Row],[Действителен разход]]=\"\"),\"\",Таблица_Месечни_Разходи[[#This Row],[Планиран разход]]-Таблица_Месечни_Разходи[[#This Row],[Действителен разход]])","v":""},{"$f":"Таблица_Месечни_Разходи[[#This Row],[Действителен разход]]","v":0}]
[null,"Разходи за МПС","Транспорт",{"v":450,"d":"450 лв."},{"v":450,"d":"450 лв."},{"$f":"IF(OR(Таблица_Месечни_Разходи[[#This Row],[Планиран разход]]=\"\",Таблица_Месечни_Разходи[[#This Row],[Действителен разход]]=\"\"),\"\",Таблица_Месечни_Разходи[[#This Row],[Планиран разход]]-Таблица_Месечни_Разходи[[#This Row],[Действителен разход]])","v":{"v":0,"d":"0 лв."}},{"$f":"Таблица_Месечни_Разходи[[#This Row],[Действителен разход]]","v":450}]

{"sheet":"Допълнителни данни","index":3,"n_rows":17,"n_cols":6,"rows_kept":17}
[{"$nulls":5}," "]
[null,"Обобщена таблица за диаграма относно Бюджета",null,null,"Списък с категории"]
[]
[null,"Категории","Цена ",null,"За да добавите категория, въведете по-долу"]
[null,"Домашни любимци",{"v":100,"d":"100 лв."},null,"Деца"]
[null,"Подаръци и дарения",{"v":125,"d":"125 лв."},null,"Развлечения"]
[null,"Деца",{"v":140,"d":"140 лв."},null,"Храна"]
[null,"Хигиенни материали",{"v":140,"d":"140 лв."},null,"Подаръци и дарения"]
[null,"Спестявания",{"v":200,"d":"200 лв."},null,"Домакинство"]
[null,"Заеми",{"v":200,"d":"200 лв."},null,"Застраховка"]
[null,"Данъци",{"v":300,"d":"300 лв."},null,"Заеми"]
[null,"Развлечения",{"v":358,"d":"358 лв."},null,"Хигиенни материали"]
[null,"Застраховка",{"v":900,"d":"900 лв."},null,"Домашни любимци"]
[null,"Храна",{"v":1320,"d":"1,320 лв."},null,"Спестявания"]
[null,"Транспорт",{"v":1375,"d":"1,375 лв."},null,"Данъци"]
[null,"Домакинство",{"v":2702,"d":"2,702 лв."},null,"Транспорт"]
[null,"Grand Total",{"v":7860,"d":"7,860 лв."}]